[Event "Early-Titled-Tuesday-Blitz-November-28-2023"]
[Site "Chess.com"]
[Date "2023.11.28"]
[Round "1"]
[White "A-Fier"]
[Black "Daniel_Salinas"]
[Result "1-0"]
[WhiteElo "2746"]
[BlackElo "2420"]
[TimeControl "180+1"]
[EndTime "8:04:52 PST"]
[Termination "A-Fier won by resignation"]

1. Nf3 {[%clk 0:03:00.9]} 1... Nf6 {[%clk 0:02:56.6]} 2. g3 {[%clk 0:03:01.8]}
2... d5 {[%clk 0:02:56.4]} 3. Bg2 {[%clk 0:03:02.7]} 3... g6 {[%clk 0:02:56.7]}
4. O-O {[%clk 0:03:03]} 4... Bg7 {[%clk 0:02:57.3]} 5. d3 {[%clk 0:03:02.8]}
5... O-O {[%clk 0:02:57.8]} 6. Nc3 {[%clk 0:03:03.1]} 6... c5 {[%clk 0:02:57.8]}
7. a3 {[%clk 0:03:03]} 7... Nc6 {[%clk 0:02:57.9]} 8. Rb1 {[%clk 0:03:03.4]}
8... d4 {[%clk 0:02:57.7]} 9. Na4 {[%clk 0:03:02.3]} 9... Nd7 {[%clk 0:02:56.5]}
10. c4 {[%clk 0:03:02.2]} 10... a5 {[%clk 0:02:55.2]} 11. e3 {[%clk 0:03:00.5]}
11... e5 {[%clk 0:02:50.3]} 12. exd4 {[%clk 0:02:57.8]} 12... cxd4 {[%clk
0:02:51.2]} 13. b4 {[%clk 0:02:55.5]} 13... axb4 {[%clk 0:02:49.8]} 14. axb4
{[%clk 0:02:55.9]} 14... Re8 {[%clk 0:02:25.8]} 15. Nd2 {[%clk 0:02:54.5]} 15...
Nb6 {[%clk 0:02:17.9]} 16. Nc5 {[%clk 0:02:53.5]} 16... Bf5 {[%clk 0:02:08.7]}
17. b5 {[%clk 0:02:52.7]} 17... Na5 {[%clk 0:01:47.1]} 18. Nde4 {[%clk
0:02:52.4]} 18... Qc7 {[%clk 0:01:39.6]} 19. f4 {[%clk 0:02:47.9]} 19... exf4
{[%clk 0:01:37.3]} 20. Bxf4 {[%clk 0:02:47.6]} 20... Be5 {[%clk 0:01:38]} 21.
Nf6+ {[%clk 0:02:46.9]} 21... Kg7 {[%clk 0:01:36.7]} 22. Nxe8+ {[%clk
0:02:46.9]} 22... Rxe8 {[%clk 0:01:35.6]} 23. Bxe5+ {[%clk 0:02:47.3]} 23...
Rxe5 {[%clk 0:01:35.8]} 24. Ne4 {[%clk 0:02:47.8]} 24... Bxe4 {[%clk 0:01:32.6]}
25. Bxe4 {[%clk 0:02:45.9]} 25... Naxc4 {[%clk 0:01:33.2]} 26. Qc2 {[%clk
0:02:42.2]} 26... Qe7 {[%clk 0:01:15.9]} 27. Rf2 {[%clk 0:02:32]} 27... f5
{[%clk 0:01:12.5]} 28. Bg2 {[%clk 0:02:10.2]} 28... Ne3 {[%clk 0:01:05.3]} 29.
Qb2 {[%clk 0:02:09.4]} 29... Ng4 {[%clk 0:00:55.1]} 30. Rf4 {[%clk 0:02:02]}
30... Rd5 {[%clk 0:00:42.1]} 31. Bxd5 {[%clk 0:01:57.8]} 31... Qe3+ {[%clk
0:00:40.1]} 32. Kg2 {[%clk 0:01:56.7]} 1-0

[Event "Early-Titled-Tuesday-Blitz-November-28-2023"]
[Site "Chess.com"]
[Date "2023.11.28"]
[Round "1"]
[White "Volodar_Murzin"]
[Black "juniortay"]
[Result "1-0"]
[WhiteElo "2882"]
[BlackElo "2492"]
[TimeControl "180+1"]
[EndTime "8:04:53 PST"]
[Termination "Volodar_Murzin won by resignation"]

1. Nf3 {[%clk 0:03:00.9]} 1... d5 {[%clk 0:02:59.1]} 2. g3 {[%clk 0:03:00.9]}
2... c5 {[%clk 0:02:58.7]} 3. Bg2 {[%clk 0:03:01.3]} 3... Nc6 {[%clk 0:02:58.8]}
4. O-O {[%clk 0:03:02]} 4... Nf6 {[%clk 0:02:59.1]} 5. d3 {[%clk 0:03:02.4]}
5... e6 {[%clk 0:02:58.7]} 6. Nbd2 {[%clk 0:03:02.9]} 6... Be7 {[%clk
0:02:59.3]} 7. e4 {[%clk 0:03:03.5]} 7... b6 {[%clk 0:02:59.9]} 8. Re1 {[%clk
0:03:03.6]} 8... Bb7 {[%clk 0:03:00.4]} 9. e5 {[%clk 0:03:04.2]} 9... Nd7 {[%clk
0:03:00.3]} 10. Nf1 {[%clk 0:03:04.8]} 10... g5 {[%clk 0:03:00.4]} 11. h3 {[%clk
0:03:03.8]} 11... h5 {[%clk 0:03:00.2]} 12. g4 {[%clk 0:03:04.5]} 12... hxg4
{[%clk 0:03:00.6]} 13. hxg4 {[%clk 0:03:05.4]} 13... Qc7 {[%clk 0:03:00.8]} 14.
Qe2 {[%clk 0:03:06]} 14... O-O-O {[%clk 0:03:00.5]} 15. Ng3 {[%clk 0:03:06.7]}
15... Rdg8 {[%clk 0:02:59.8]} 16. c3 {[%clk 0:03:05.4]} 16... Nf8 {[%clk
0:02:55.7]} 17. d4 {[%clk 0:03:04.8]} 17... Ng6 {[%clk 0:02:55.3]} 18. Be3
{[%clk 0:03:02.1]} 18... Nf4 {[%clk 0:02:53.9]} 19. Qd1 {[%clk 0:02:57.7]} 19...
Nxg2 {[%clk 0:02:39.3]} 20. Kxg2 {[%clk 0:02:58.6]} 20... f5 {[%clk 0:02:34.2]}
21. exf6 {[%clk 0:02:50.3]} 21... Bxf6 {[%clk 0:02:34.5]} 22. Rh1 {[%clk
0:02:49.1]} 22... e5 {[%clk 0:02:31.1]} 23. Rxh8 {[%clk 0:02:44.8]} 23... Rxh8
{[%clk 0:02:30.8]} 24. Nh5 {[%clk 0:02:45.3]} 24... Rxh5 {[%clk 0:02:22.4]} 25.
gxh5 {[%clk 0:02:44.8]} 25... g4 {[%clk 0:02:10.6]} 26. Nxe5 {[%clk 0:02:03.1]}
26... Nxe5 {[%clk 0:01:45.4]} 27. Bf4 {[%clk 0:01:42]} 27... Qg7 {[%clk
0:01:30]} 28. dxe5 {[%clk 0:01:28.9]} 28... d4+ {[%clk 0:01:29.2]} 29. Kg3
{[%clk 0:01:23.3]} 29... Bxe5 {[%clk 0:01:16.4]} 30. Qxg4+ {[%clk 0:01:22.6]}
1-0

[Event "Early-Titled-Tuesday-Blitz-November-28-2023"]
[Site "Chess.com"]
[Date "2023.11.28"]
[Round "1"]
[White "bascheyaro"]
[Black "ElDivis"]
[Result "1-0"]
[WhiteElo "2838"]
[BlackElo "2460"]
[TimeControl "180+1"]
[EndTime "8:04:54 PST"]
[Termination "bascheyaro won by resignation"]

1. d4 {[%clk 0:02:46.8]} 1... Nf6 {[%clk 0:02:59.8]} 2. c4 {[%clk 0:02:46.4]}
2... e6 {[%clk 0:03:00.4]} 3. Nf3 {[%clk 0:02:46.2]} 3... d5 {[%clk 0:02:58.1]}
4. Nc3 {[%clk 0:02:46]} 4... c6 {[%clk 0:02:55.2]} 5. Bg5 {[%clk 0:02:45.7]}
5... h6 {[%clk 0:02:54.3]} 6. Bh4 {[%clk 0:02:45.7]} 6... g5 {[%clk 0:02:51.4]}
7. Bg3 {[%clk 0:02:45.7]} 7... dxc4 {[%clk 0:02:52.3]} 8. e3 {[%clk 0:02:46]}
8... b5 {[%clk 0:02:48.4]} 9. a4 {[%clk 0:02:46]} 9... Bb4 {[%clk 0:02:42.8]}
10. axb5 {[%clk 0:02:36.7]} 10... cxb5 {[%clk 0:02:42.5]} 11. h4 {[%clk
0:02:36.3]} 11... Rg8 {[%clk 0:02:30.6]} 12. hxg5 {[%clk 0:02:35.3]} 12... hxg5
{[%clk 0:02:31.5]} 13. Bxb8 {[%clk 0:02:33.9]} 13... Rxb8 {[%clk 0:02:30.4]} 14.
Rxa7 {[%clk 0:02:33.5]} 14... Nd5 {[%clk 0:02:18.8]} 15. Ne5 {[%clk 0:02:05.7]}
15... Bb7 {[%clk 0:02:16.6]} 16. Qh5 {[%clk 0:01:54.3]} 16... Qf6 {[%clk
0:02:07]} 17. Be2 {[%clk 0:01:37.6]} 17... Nxc3 {[%clk 0:02:01.5]} 18. bxc3
{[%clk 0:01:37.7]} 18... Bxc3+ {[%clk 0:02:02.3]} 19. Kf1 {[%clk 0:01:38.2]}
19... Ra8 {[%clk 0:01:42.9]} 20. Rxa8+ {[%clk 0:01:05.7]} 20... Bxa8 {[%clk
0:01:43.8]} 21. Qh7 {[%clk 0:01:01.8]} 21... Qg7 {[%clk 0:01:16.1]} 22. Qxg7
{[%clk 0:01:01]} 22... Rxg7 {[%clk 0:01:15.6]} 23. Rh8+ {[%clk 0:01:01.8]} 23...
Ke7 {[%clk 0:01:15.7]} 24. Rxa8 {[%clk 0:01:02]} 24... Rh7 {[%clk 0:01:13.2]}
1-0

[Event "Early-Titled-Tuesday-Blitz-November-28-2023"]
[Site "Chess.com"]
[Date "2023.11.28"]
[Round "1"]
[White "MikeSailer"]
[Black "doublesik"]
[Result "0-1"]
[WhiteElo "2037"]
[BlackElo "2536"]
[TimeControl "180+1"]
[EndTime "8:04:54 PST"]
[Termination "doublesik won by resignation"]

1. d4 {[%clk 0:02:59]} 1... d5 {[%clk 0:02:54.8]} 2. Bf4 {[%clk 0:02:57.7]} 2...
Nf6 {[%clk 0:02:54.8]} 3. e3 {[%clk 0:02:56.2]} 3... c5 {[%clk 0:02:53.6]} 4.
Nc3 {[%clk 0:02:45.3]} 4... a6 {[%clk 0:02:49]} 5. Nf3 {[%clk 0:02:44.4]} 5...
e6 {[%clk 0:02:45.2]} 6. Be2 {[%clk 0:02:33.7]} 6... Nc6 {[%clk 0:02:45.1]} 7.
h3 {[%clk 0:02:31.5]} 7... Be7 {[%clk 0:02:44.3]} 8. a3 {[%clk 0:02:28.9]} 8...
b5 {[%clk 0:02:44.3]} 9. dxc5 {[%clk 0:02:27.7]} 9... Bxc5 {[%clk 0:02:45.2]}
10. O-O {[%clk 0:02:24.2]} 10... O-O {[%clk 0:02:45]} 11. Nd4 {[%clk 0:02:07.7]}
11... Bb7 {[%clk 0:02:40.8]} 12. Nxc6 {[%clk 0:02:02.6]} 12... Bxc6 {[%clk
0:02:41.7]} 13. Bd3 {[%clk 0:01:57.9]} 13... Re8 {[%clk 0:02:38.8]} 14. Qe2
{[%clk 0:01:51.1]} 14... e5 {[%clk 0:02:36.7]} 15. b4 {[%clk 0:01:15]} 15... Bb6
{[%clk 0:02:27.4]} 16. Bg5 {[%clk 0:01:08.4]} 16... e4 {[%clk 0:02:26.9]} 17.
Bxb5 {[%clk 0:01:05.1]} 17... axb5 {[%clk 0:02:23.1]} 18. Nxb5 {[%clk
0:01:05.2]} 18... h6 {[%clk 0:02:16.1]} 19. Bh4 {[%clk 0:01:03.9]} 19... Qd7
{[%clk 0:02:04.9]} 20. Nd4 {[%clk 0:00:55.1]} 20... Bxd4 {[%clk 0:02:04.3]} 21.
exd4 {[%clk 0:00:55.7]} 21... Bb5 {[%clk 0:02:04.9]} 22. Qe3 {[%clk 0:00:50]}
22... Bxf1 {[%clk 0:02:04.6]} 23. Rxf1 {[%clk 0:00:46.1]} 23... Qc6 {[%clk
0:02:00.6]} 24. f3 {[%clk 0:00:40.5]} 24... exf3 {[%clk 0:01:52.9]} 25. Qxf3
{[%clk 0:00:39.3]} 25... Re6 {[%clk 0:01:52.3]} 26. c3 {[%clk 0:00:33.8]} 26...
Rxa3 {[%clk 0:01:50.7]} 0-1

[Event "Early-Titled-Tuesday-Blitz-November-28-2023"]
[Site "Chess.com"]
[Date "2023.11.28"]
[Round "1"]
[White "kai_nov"]
[Black "hakanazeri2"]
[Result "1-0"]
[WhiteElo "2251"]
[BlackElo "2569"]
[TimeControl "180+1"]
[EndTime "8:04:55 PST"]
[Termination "kai_nov won by resignation"]

1. d4 {[%clk 0:02:58.1]} 1... Nf6 {[%clk 0:02:55]} 2. Nc3 {[%clk 0:02:57.6]}
2... d5 {[%clk 0:02:54.2]} 3. Bg5 {[%clk 0:02:57]} 3... e6 {[%clk 0:02:37.5]} 4.
e4 {[%clk 0:02:56]} 4... dxe4 {[%clk 0:02:38.4]} 5. Nxe4 {[%clk 0:02:55.1]} 5...
Be7 {[%clk 0:02:33.4]} 6. Bxf6 {[%clk 0:02:54.4]} 6... Bxf6 {[%clk 0:02:34.3]}
7. Nf3 {[%clk 0:02:53.8]} 7... b6 {[%clk 0:02:28.5]} 8. c3 {[%clk 0:02:53.2]}
8... Bb7 {[%clk 0:02:27.3]} 9. Bd3 {[%clk 0:02:52.3]} 9... Nd7 {[%clk
0:02:24.8]} 10. Qe2 {[%clk 0:02:51.9]} 10... O-O {[%clk 0:02:21.5]} 11. O-O-O
{[%clk 0:02:50]} 11... Qe7 {[%clk 0:02:20.9]} 12. Kb1 {[%clk 0:02:41.1]} 12...
c5 {[%clk 0:02:18.5]} 13. g4 {[%clk 0:02:40.7]} 13... cxd4 {[%clk 0:02:02.4]}
14. g5 {[%clk 0:02:39.5]} 14... Be5 {[%clk 0:01:59.1]} 15. Rdg1 {[%clk
0:02:08.4]} 15... dxc3 {[%clk 0:01:47.3]} 16. Nxe5 {[%clk 0:02:06.9]} 16... Nxe5
{[%clk 0:01:37.6]} 17. Nf6+ {[%clk 0:02:06.2]} 17... Kh8 {[%clk 0:01:37.7]} 18.
Qxe5 {[%clk 0:02:00.4]} 18... gxf6 {[%clk 0:01:36.4]} 19. gxf6 {[%clk
0:01:59.7]} 19... Qc5 {[%clk 0:01:35.9]} 20. Rg7 {[%clk 0:01:19.9]} 1-0

[Event "Early-Titled-Tuesday-Blitz-November-28-2023"]
[Site "Chess.com"]
[Date "2023.11.28"]
[Round "1"]
[White "Herman-NY"]
[Black "defenceboy"]
[Result "0-1"]
[WhiteElo "2500"]
[BlackElo "2942"]
[TimeControl "180+1"]
[EndTime "8:04:59 PST"]
[Termination "defenceboy won by resignation"]

1. e4 {[%clk 0:03:00.9]} 1... c6 {[%clk 0:02:59.2]} 2. d4 {[%clk 0:03:01]} 2...
d5 {[%clk 0:03:00.1]} 3. e5 {[%clk 0:03:01.7]} 3... Bf5 {[%clk 0:03:00]} 4. h4
{[%clk 0:03:01.8]} 4... h5 {[%clk 0:02:59.3]} 5. c4 {[%clk 0:03:02.1]} 5... e6
{[%clk 0:02:59.3]} 6. Nc3 {[%clk 0:03:02.1]} 6... Be7 {[%clk 0:02:58.5]} 7. g3
{[%clk 0:02:55.2]} 7... dxc4 {[%clk 0:02:58.4]} 8. Bxc4 {[%clk 0:02:55.1]} 8...
Nd7 {[%clk 0:02:58.6]} 9. Nge2 {[%clk 0:02:44.6]} 9... Nh6 {[%clk 0:02:57.5]}
10. Bxh6 {[%clk 0:02:43.9]} 10... Rxh6 {[%clk 0:02:56.9]} 11. f4 {[%clk
0:02:30.2]} 11... Nb6 {[%clk 0:02:41.1]} 12. Bd3 {[%clk 0:02:16.1]} 12... Bg4
{[%clk 0:02:39.7]} 13. Qb3 {[%clk 0:01:19.2]} 13... Kf8 {[%clk 0:02:31]} 14. Rf1
{[%clk 0:01:09.3]} 14... g6 {[%clk 0:02:30.9]} 15. O-O-O {[%clk 0:00:55.2]}
15... Kg7 {[%clk 0:02:30.4]} 16. Kb1 {[%clk 0:00:55.3]} 16... Rh8 {[%clk
0:02:30.1]} 17. Rd2 {[%clk 0:00:46.4]} 17... Nd5 {[%clk 0:02:30]} 18. Nxd5
{[%clk 0:00:37.4]} 18... Qxd5 {[%clk 0:02:24.8]} 19. Qxd5 {[%clk 0:00:30.6]}
19... cxd5 {[%clk 0:02:25.7]} 20. Rc2 {[%clk 0:00:28]} 20... Rhc8 {[%clk
0:02:24.1]} 21. Rfc1 {[%clk 0:00:21.9]} 21... Rxc2 {[%clk 0:02:24.6]} 22. Rxc2
{[%clk 0:00:22.8]} 22... Bd8 {[%clk 0:02:24.6]} 23. Rd2 {[%clk 0:00:11.4]} 23...
Ba5 {[%clk 0:02:23.5]} 24. Nc3 {[%clk 0:00:10.2]} 24... Bb6 {[%clk 0:02:22.8]}
25. Bc2 {[%clk 0:00:06.5]} 25... Rc8 {[%clk 0:02:21.3]} 26. Bb3 {[%clk 0:00:07]}
26... Bf5+ {[%clk 0:02:18.7]} 27. Kc1 {[%clk 0:00:05.4]} 27... Ba5 {[%clk
0:02:17.6]} 28. Bc2 {[%clk 0:00:03.3]} 28... Bxc3 {[%clk 0:02:17.6]} 29. bxc3
{[%clk 0:00:03.2]} 29... Rxc3 {[%clk 0:02:18.5]} 30. Kb2 {[%clk 0:00:04]} 30...
Rxg3 {[%clk 0:02:17.3]} 0-1

[Event "Early-Titled-Tuesday-Blitz-November-28-2023"]
[Site "Chess.com"]
[Date "2023.11.28"]
[Round "1"]
[White "GoValya"]
[Black "djano"]
[Result "0-1"]
[WhiteElo "2200"]
[BlackElo "2567"]
[TimeControl "180+1"]
[EndTime "8:05:01 PST"]
[Termination "djano won on time"]

1. d4 {[%clk 0:01:49.1]} 1... d5 {[%clk 0:02:59.5]} 2. g3 {[%clk 0:01:48.5]}
2... e6 {[%clk 0:02:58.7]} 3. Bg2 {[%clk 0:01:49.4]} 3... c5 {[%clk 0:02:59.4]}
4. Nf3 {[%clk 0:01:46.8]} 4... Nc6 {[%clk 0:02:59.3]} 5. O-O {[%clk 0:01:44.5]}
5... Nf6 {[%clk 0:02:59.2]} 6. c4 {[%clk 0:01:42.3]} 6... Be7 {[%clk 0:02:56]}
7. cxd5 {[%clk 0:01:41.1]} 7... exd5 {[%clk 0:02:56.9]} 8. Nc3 {[%clk
0:00:52.7]} 8... O-O {[%clk 0:02:56.2]} 9. dxc5 {[%clk 0:00:08]} 9... Bxc5
{[%clk 0:02:57.1]} 10. Bd2 {[%clk 0:00:07.8]} 10... d4 {[%clk 0:02:56.6]} 11.
Na4 {[%clk 0:00:08.7]} 11... Be7 {[%clk 0:02:56.4]} 12. Rc1 {[%clk 0:00:09.5]}
12... Be6 {[%clk 0:02:51.8]} 13. Nc5 {[%clk 0:00:09.8]} 13... Bd5 {[%clk
0:02:49.3]} 14. Kh1 {[%clk 0:00:08.4]} 14... Qb6 {[%clk 0:02:46.2]} 15. Nb3
{[%clk 0:00:08.4]} 15... Rad8 {[%clk 0:02:42.3]} 16. Bg5 {[%clk 0:00:07.6]}
16... h6 {[%clk 0:02:41.6]} 17. Bf4 {[%clk 0:00:06.9]} 17... a5 {[%clk 0:02:37]}
18. Nbxd4 {[%clk 0:00:06.2]} 18... Bxf3 {[%clk 0:02:28.9]} 19. Nxc6 {[%clk
0:00:05.2]} 19... Bxg2+ {[%clk 0:02:27.6]} 20. Kxg2 {[%clk 0:00:05]} 20... bxc6
{[%clk 0:02:23.8]} 21. Qc2 {[%clk 0:00:04.4]} 21... Nd5 {[%clk 0:02:22.8]} 22.
Bd2 {[%clk 0:00:03.5]} 22... Bf6 {[%clk 0:02:19.1]} 23. Qxc6 {[%clk 0:00:03.5]}
23... Qxb2 {[%clk 0:02:18.6]} 24. Rb1 {[%clk 0:00:03]} 24... Qxd2 {[%clk
0:02:18.5]} 25. Rfd1 {[%clk 0:00:03.8]} 25... Qc3 {[%clk 0:02:13.4]} 26. Rxd5
{[%clk 0:00:03.1]} 26... Qxc6 {[%clk 0:02:12.7]} 0-1

[Event "Early-Titled-Tuesday-Blitz-November-28-2023"]
[Site "Chess.com"]
[Date "2023.11.28"]
[Round "1"]
[White "snowlord"]
[Black "arenal72"]
[Result "1-0"]
[WhiteElo "2885"]
[BlackElo "2495"]
[TimeControl "180+1"]
[EndTime "8:05:09 PST"]
[Termination "snowlord won by resignation"]

1. e4 {[%clk 0:03:00.9]} 1... Nc6 {[%clk 0:02:57.8]} 2. d4 {[%clk 0:02:59.1]}
2... d5 {[%clk 0:02:57.4]} 3. e5 {[%clk 0:02:58]} 3... Bf5 {[%clk 0:02:56.4]} 4.
c3 {[%clk 0:02:56.4]} 4... Qd7 {[%clk 0:02:56.4]} 5. Be2 {[%clk 0:02:53.8]} 5...
f6 {[%clk 0:02:53.1]} 6. f4 {[%clk 0:02:53.9]} 6... O-O-O {[%clk 0:02:50.9]} 7.
Nf3 {[%clk 0:02:53.6]} 7... h6 {[%clk 0:02:46]} 8. Nh4 {[%clk 0:02:48.6]} 8...
g6 {[%clk 0:02:31.8]} 9. O-O {[%clk 0:02:44.3]} 9... h5 {[%clk 0:02:19.1]} 10.
Nxf5 {[%clk 0:02:38.9]} 10... Qxf5 {[%clk 0:02:15.6]} 11. Bd3 {[%clk 0:02:38.7]}
11... Qd7 {[%clk 0:02:12.5]} 12. b4 {[%clk 0:02:18.5]} 12... f5 {[%clk
0:02:05.5]} 13. Qa4 {[%clk 0:02:15.6]} 13... a6 {[%clk 0:01:48.3]} 14. b5 {[%clk
0:02:00.3]} 14... Na7 {[%clk 0:01:45.5]} 15. Na3 {[%clk 0:01:58.6]} 15... e6
{[%clk 0:01:45.4]} 16. Qb3 {[%clk 0:01:52.3]} 16... axb5 {[%clk 0:01:36.1]} 17.
Nxb5 {[%clk 0:01:52.2]} 17... Nxb5 {[%clk 0:01:35.5]} 18. Bxb5 {[%clk
0:01:53.1]} 18... c6 {[%clk 0:01:35.8]} 19. Bd3 {[%clk 0:01:53.4]} 19... Qc7
{[%clk 0:01:29.8]} 20. Rb1 {[%clk 0:01:47.5]} 20... Rh7 {[%clk 0:01:25.7]} 21.
Qa4 {[%clk 0:01:34.7]} 21... c5 {[%clk 0:01:13.3]} 22. Ba6 {[%clk 0:01:21.4]}
22... Rdd7 {[%clk 0:00:47.2]} 23. Rxb7 {[%clk 0:01:18.2]} 1-0

[Event "Early-Titled-Tuesday-Blitz-November-28-2023"]
[Site "Chess.com"]
[Date "2023.11.28"]
[Round "1"]
[White "Emp3rador"]
[Black "parintele_chess"]
[Result "1-0"]
[WhiteElo "2557"]
[BlackElo "2192"]
[TimeControl "180+1"]
[EndTime "8:05:20 PST"]
[Termination "Emp3rador won by resignation"]

1. e4 {[%clk 0:03:00.9]} 1... e5 {[%clk 0:02:48]} 2. Nf3 {[%clk 0:03:00.1]} 2...
Nc6 {[%clk 0:02:47.7]} 3. d4 {[%clk 0:02:59.6]} 3... exd4 {[%clk 0:02:47.6]} 4.
Nxd4 {[%clk 0:03:00.5]} 4... Nf6 {[%clk 0:02:47.2]} 5. Nc3 {[%clk 0:02:59.5]}
5... Bb4 {[%clk 0:02:41.1]} 6. Nxc6 {[%clk 0:02:59.5]} 6... bxc6 {[%clk
0:02:41.3]} 7. Bd3 {[%clk 0:03:00.2]} 7... d6 {[%clk 0:02:37.2]} 8. O-O {[%clk
0:02:58.2]} 8... Bxc3 {[%clk 0:02:37.4]} 9. bxc3 {[%clk 0:02:58]} 9... h6 {[%clk
0:02:37.6]} 10. Qf3 {[%clk 0:02:56.4]} 10... O-O {[%clk 0:02:33.4]} 11. Qg3
{[%clk 0:02:56]} 11... Kh8 {[%clk 0:02:29.7]} 12. Qh4 {[%clk 0:02:52.2]} 12...
Nd7 {[%clk 0:02:18.8]} 13. Qh5 {[%clk 0:02:50.2]} 13... Nf6 {[%clk 0:02:09.2]}
14. Qh4 {[%clk 0:02:39.5]} 14... Nd7 {[%clk 0:02:05.6]} 15. Qh5 {[%clk
0:02:35.9]} 15... Nf6 {[%clk 0:02:05.5]} 16. Qf3 {[%clk 0:02:35.7]} 16... Kg8
{[%clk 0:01:44.4]} 17. h3 {[%clk 0:02:32.5]} 17... Nd7 {[%clk 0:01:42.7]} 18.
Qg3 {[%clk 0:02:30.8]} 18... Kh8 {[%clk 0:01:41.4]} 19. Be3 {[%clk 0:02:28]}
19... Ne5 {[%clk 0:01:37.8]} 20. f4 {[%clk 0:02:26]} 20... Nxd3 {[%clk
0:01:37.8]} 21. cxd3 {[%clk 0:02:26.9]} 21... f5 {[%clk 0:01:29.6]} 22. Bd4
{[%clk 0:02:19]} 22... Qe7 {[%clk 0:01:22]} 23. Rae1 {[%clk 0:02:16.9]} 23...
Qf7 {[%clk 0:01:18.2]} 24. c4 {[%clk 0:02:09.8]} 24... c5 {[%clk 0:01:15.9]} 25.
Bc3 {[%clk 0:02:08.9]} 25... fxe4 {[%clk 0:01:06.9]} 26. Rxe4 {[%clk 0:02:05.2]}
26... Bf5 {[%clk 0:01:04.9]} 27. Re3 {[%clk 0:02:04.2]} 27... Rae8 {[%clk
0:01:04.6]} 28. Rfe1 {[%clk 0:02:03.2]} 28... Rxe3 {[%clk 0:00:42.7]} 29. Rxe3
{[%clk 0:02:04.1]} 29... Qg6 {[%clk 0:00:42.9]} 30. Qh4 {[%clk 0:02:01.7]} 30...
Re8 {[%clk 0:00:41.1]} 31. Rg3 {[%clk 0:02:00.5]} 31... Qf7 {[%clk 0:00:19.6]}
32. Rxg7 {[%clk 0:01:58.3]} 32... Qxg7 {[%clk 0:00:18]} 33. Qxh6+ {[%clk
0:01:57.3]} 1-0

[Event "Early-Titled-Tuesday-Blitz-November-28-2023"]
[Site "Chess.com"]
[Date "2023.11.28"]
[Round "1"]
[White "bubeliang"]
[Black "queen_iryna"]
[Result "1-0"]
[WhiteElo "2634"]
[BlackElo "2327"]
[TimeControl "180+1"]
[EndTime "8:05:21 PST"]
[Termination "bubeliang won by resignation"]

1. e4 {[%clk 0:02:43.1]} 1... d6 {[%clk 0:03:00.9]} 2. d4 {[%clk 0:02:43.3]}
2... Nf6 {[%clk 0:02:59]} 3. Nc3 {[%clk 0:02:43.2]} 3... e5 {[%clk 0:02:58.5]}
4. Nf3 {[%clk 0:02:42.4]} 4... Nbd7 {[%clk 0:02:49.4]} 5. Bc4 {[%clk 0:02:42.2]}
5... Be7 {[%clk 0:02:46]} 6. dxe5 {[%clk 0:02:42.2]} 6... Nxe5 {[%clk
0:02:45.5]} 7. Nxe5 {[%clk 0:02:38.2]} 7... dxe5 {[%clk 0:02:46.4]} 8. Qe2
{[%clk 0:02:38.2]} 8... O-O {[%clk 0:02:45]} 9. O-O {[%clk 0:02:38.6]} 9... c6
{[%clk 0:02:37.6]} 10. f4 {[%clk 0:02:35.9]} 10... exf4 {[%clk 0:02:34.2]} 11.
Bxf4 {[%clk 0:02:36.8]} 11... Be6 {[%clk 0:02:32.7]} 12. Bxe6 {[%clk 0:02:31.1]}
12... fxe6 {[%clk 0:02:33.6]} 13. Qc4 {[%clk 0:02:31.5]} 13... Qc8 {[%clk
0:02:31.6]} 14. a4 {[%clk 0:02:27]} 14... Kh8 {[%clk 0:02:29.9]} 15. Rad1 {[%clk
0:02:25.9]} 15... Ng4 {[%clk 0:02:24.1]} 16. h3 {[%clk 0:02:21.5]} 16... Nf6
{[%clk 0:02:20]} 17. Bd6 {[%clk 0:02:19.2]} 17... Bxd6 {[%clk 0:02:11]} 18. Rxd6
{[%clk 0:02:20.1]} 18... e5 {[%clk 0:02:10.5]} 19. Rfd1 {[%clk 0:02:15.9]} 19...
a5 {[%clk 0:02:07.9]} 20. Ne2 {[%clk 0:02:11]} 20... Qb8 {[%clk 0:01:44.1]} 21.
Ng3 {[%clk 0:02:07.6]} 21... Qa7+ {[%clk 0:01:24.8]} 22. Kh2 {[%clk 0:02:03.9]}
22... Qb6 {[%clk 0:01:13.7]} 23. b3 {[%clk 0:02:01.3]} 23... Rad8 {[%clk
0:01:09]} 24. Qe6 {[%clk 0:02:00.2]} 24... Rxd6 {[%clk 0:01:04.4]} 25. Rxd6
{[%clk 0:01:56.6]} 25... Re8 {[%clk 0:01:02.5]} 26. Qf7 {[%clk 0:01:49.7]} 26...
Qb4 {[%clk 0:00:46.6]} 27. Rxf6 {[%clk 0:01:48.4]} 27... Rg8 {[%clk 0:00:22.7]}
28. Re6 {[%clk 0:01:43.3]} 28... Qb6 {[%clk 0:00:19.1]} 29. Re8 {[%clk
0:01:42.7]} 1-0

[Event "Early-Titled-Tuesday-Blitz-November-28-2023"]
[Site "Chess.com"]
[Date "2023.11.28"]
[Round "1"]
[White "HATilay"]
[Black "Shield12"]
[Result "0-1"]
[WhiteElo "2506"]
[BlackElo "2957"]
[TimeControl "180+1"]
[EndTime "8:05:24 PST"]
[Termination "Shield12 won by resignation"]

1. d4 {[%clk 0:02:59.7]} 1... Nf6 {[%clk 0:02:59.7]} 2. c4 {[%clk 0:03:00.3]}
2... e6 {[%clk 0:03:00]} 3. Nc3 {[%clk 0:03:00.9]} 3... Bb4 {[%clk 0:02:59.5]}
4. e3 {[%clk 0:03:01.5]} 4... O-O {[%clk 0:02:58.9]} 5. Bd3 {[%clk 0:03:02.1]}
5... d5 {[%clk 0:02:58.6]} 6. Nf3 {[%clk 0:03:02.4]} 6... c5 {[%clk 0:02:56.8]}
7. cxd5 {[%clk 0:03:02.3]} 7... cxd4 {[%clk 0:02:52.2]} 8. exd4 {[%clk
0:03:02.3]} 8... Nxd5 {[%clk 0:02:51.4]} 9. O-O {[%clk 0:03:02.6]} 9... Nc6
{[%clk 0:02:51.1]} 10. Bc2 {[%clk 0:03:02.2]} 10... Be7 {[%clk 0:02:42.2]} 11.
Qd3 {[%clk 0:03:02.5]} 11... Nf6 {[%clk 0:02:41.8]} 12. a3 {[%clk 0:03:03.1]}
12... h6 {[%clk 0:02:39.4]} 13. Bf4 {[%clk 0:03:03.4]} 13... b6 {[%clk
0:02:38.4]} 14. Rad1 {[%clk 0:03:02.9]} 14... a5 {[%clk 0:02:32.4]} 15. Rfe1
{[%clk 0:03:00.5]} 15... Ba6 {[%clk 0:02:31.5]} 16. Qd2 {[%clk 0:03:01]} 16...
Re8 {[%clk 0:02:29.9]} 17. Bxh6 {[%clk 0:02:40.7]} 17... gxh6 {[%clk 0:02:28.2]}
18. Qxh6 {[%clk 0:02:41.4]} 18... Bf8 {[%clk 0:02:28]} 19. Qh4 {[%clk
0:02:41.9]} 19... Bg7 {[%clk 0:02:23.7]} 20. Ng5 {[%clk 0:02:01]} 20... Ne7
{[%clk 0:02:19.1]} 21. Bh7+ {[%clk 0:00:48]} 21... Kf8 {[%clk 0:02:02.5]} 22.
Re3 {[%clk 0:00:43.8]} 22... Nf5 {[%clk 0:02:00.4]} 23. Bxf5 {[%clk 0:00:19.5]}
23... exf5 {[%clk 0:02:01.3]} 24. Re5 {[%clk 0:00:06.7]} 24... Qd7 {[%clk
0:01:50.6]} 25. Rde1 {[%clk 0:00:03.3]} 25... Bb7 {[%clk 0:01:46.8]} 26. f3
{[%clk 0:00:02.1]} 0-1